fUST/lending_fUST_20250501
["ID","MTS","AMOUNT","RATE_DAILY","PERIOD"]
[359504162,1746072633729,-400.0,0.00038356,12]
[359504163,1746072633740,-400.0,0.00038356,12]
[359504164,1746072633750,-400.0,0.00038356,12]
[359504165,1746072633760,-400.0,0.00038356,12]
[359504166,1746072633770,-400.0,0.00038356,12]
[359504167,1746072633780,-400.0,0.00038356,12]
[359504168,1746072633790,-400.0,0.00038356,12]
[359504169,1746072633799,-400.0,0.00038356,12]
[359504170,1746072633809,-400.0,0.00038356,12]
[359504171,1746072633818,-400.0,0.00038356,12]
[359504172,1746072633827,-400.0,0.00038356,12]
[359504173,1746072633837,-400.0,0.00038356,12]
[359504174,1746072633847,-400.0,0.00038356,12]
[359504175,1746072633857,-400.0,0.00038356,12]
[359504176,1746072633867,-400.0,0.00038356,12]
[359504177,1746072633877,-355.46,0.00038356,12]
[359504178,1746072633886,-400.0,0.00038356,12]
[359504179,1746072633896,-400.0,0.00038356,12]
[359504180,1746072633905,-513.96,0.00038356,12]
[359504181,1746072633915,-477.4,0.00038356,12]
[359504182,1746072633924,-400.0,0.00038356,12]
[359504183,1746072633934,-400.0,0.00038356,12]
[359504184,1746072633944,-400.0,0.00038356,12]
[359504185,1746072633955,-400.0,0.00038356,12]
[359504186,1746072633965,-400.0,0.00038356,12]
[359504187,1746072633975,-400.0,0.00038356,12]
[359504188,1746072633985,-400.0,0.00038356,12]
[359504189,1746072633997,-400.0,0.00038356,12]
[359504190,1746072634007,-400.0,0.00038356,12]
[359504191,1746072634017,-423.68,0.00038356,12]
[359504192,1746072634027,-400.0,0.00038356,12]
[359504193,1746072634037,-423.68,0.00038356,12]
[359504194,1746072634047,-400.0,0.00038356,12]
[359504195,1746072634056,-400.0,0.00038356,12]
[359504196,1746072634065,-423.68,0.00038356,12]
[359504197,1746072634075,-392.44652362,0.00038356,12]
[359504198,1746072634085,-400.0,0.00038356,12]
[359504199,1746072634095,-423.68,0.00038356,12]
[359504200,1746072634104,-404.59964322,0.00038356,12]
[359504201,1746072634114,-423.68,0.00038356,12]
[359504202,1746072634123,-423.68,0.00038356,12]
[359504203,1746072634133,-423.68,0.00038356,12]
[359504204,1746072634142,-400.0,0.00038356,12]
[359504205,1746072634151,-400.0,0.00038356,12]
[359504206,1746072634161,-400.0,0.00038356,12]
[359504207,1746072634170,-400.0,0.00038356,12]
[359504208,1746072634179,-400.0,0.00038356,12]
[359504209,1746072634189,-400.0,0.00038356,12]
[359504210,1746072634198,-400.0,0.00038356,12]
[359504211,1746072634208,-400.0,0.00038356,12]
[359504212,1746072634217,-400.0,0.00038356,12]
[359504213,1746072634227,-371.5409226,0.00038356,12]
[359504214,1746072634240,-437.56,0.00038356,12]
[359504215,1746072634249,-400.0,0.00038356,12]
[359504216,1746072634258,-402.08907532,0.00038356,12]
[359504217,1746072634268,-495.56,0.00038356,12]
[359504218,1746072634278,-400.0,0.00038356,12]
[359504219,1746072634287,-400.0,0.00038356,12]
[359504220,1746072634298,-190.98,0.00038356,12]
[359504221,1746072634308,-400.0,0.00038356,12]
[359504222,1746072634317,-400.0,0.00038356,12]
[359504223,1746072634327,-400.0,0.00038356,12]
[359504224,1746072634338,-400.0,0.00038356,12]
[359504225,1746072634348,-416.21362317,0.00038356,12]
[359504226,1746072634358,-400.0,0.00038356,12]
[359504227,1746072634368,-521.19011815,0.00038356,12]
[359504228,1746072634378,-263.45011506,0.00038356,12]
[359504229,1746072634387,-478.72524197,0.00038356,12]
[359504230,1746072634397,-400.0,0.00038356,12]
[359504231,1746072634407,-400.0,0.00038356,12]
[359504232,1746072634416,-400.0,0.00038356,12]
[359504233,1746072634425,-400.0,0.00038356,12]
[359504234,1746072634435,-400.0,0.00038356,12]
[359504235,1746072634445,-400.0,0.00038356,12]
[359504236,1746072634454,-400.0,0.00038356,12]
[359504237,1746072634463,-400.0,0.00038356,12]
[359504238,1746072634474,-400.0,0.00038356,12]
[359504239,1746072634483,-400.0,0.00038356,12]
[359504240,1746072634494,-400.0,0.00038356,12]
[359504241,1746072634504,-400.0,0.00038356,12]
[359504242,1746072634514,-404.35852315,0.00038356,12]
[359504243,1746072634525,-309.68825534,0.00038356,12]
[359504244,1746072634535,-400.0,0.00038356,12]
[359504245,1746072634545,-400.0,0.00038356,12]
[359504246,1746072634556,-400.0,0.00038356,12]
[359504247,1746072634565,-465.68,0.00038356,12]
[359504248,1746072634575,-400.0,0.00038356,12]
[359504249,1746072634586,-400.0,0.00038356,12]
[359504250,1746072634596,-400.0,0.00038356,12]
[359504251,1746072634606,-400.0,0.00038356,12]
[359504252,1746072634616,-205.19271654,0.00038356,12]
[359504253,1746072634625,-400.0,0.00038356,12]
[359504254,1746072634635,-401.62743509,0.00038356,12]
[359504255,1746072634644,-400.0,0.00038356,12]
[359504256,1746072634654,-400.0,0.00038356,12]
[359504257,1746072634663,-400.0,0.00038356,12]
[359504258,1746072634677,-400.0,0.00038356,12]
[359504259,1746072634686,-400.0,0.00038356,12]
[359504260,1746072634696,-400.0,0.00038356,12]
[359504261,1746072634707,-400.0,0.00038356,12]
[359504262,1746072634719,-406.56,0.00038356,12]
[359504263,1746072634729,-400.0,0.00038356,12]
[359504264,1746072634738,-400.0,0.00038356,12]
[359504265,1746072634749,-400.0,0.00038356,12]
[359504266,1746072634758,-400.0,0.00038356,12]
[359504267,1746072634768,-400.0,0.00038356,12]
[359504268,1746072634777,-400.0,0.00038356,12]
[359504269,1746072634786,-400.0,0.00038356,12]
[359504270,1746072634797,-400.0,0.00038356,12]
[359504271,1746072634806,-538.47,0.00038356,12]
[359504272,1746072634815,-400.0,0.00038356,12]
[359504273,1746072634825,-400.0,0.00038356,12]
[359504274,1746072634834,-400.0,0.00038356,12]
[359504275,1746072634844,-510.19913027,0.00038356,12]
[359504276,1746072634854,-400.0,0.00038356,12]
[359504277,1746072634863,-400.0,0.00038356,12]
[359504278,1746072634872,-400.0,0.00038356,12]
[359504279,1746072634882,-400.0,0.00038356,12]
[359504280,1746072634891,-400.0,0.00038356,12]
[359504281,1746072634900,-400.0,0.00038356,12]
[359504282,1746072634909,-400.0,0.00038356,12]
[359504283,1746072634918,-414.32,0.00038356,12]
[359504284,1746072634927,-400.0,0.00038356,12]
[359504285,1746072634937,-400.0,0.00038356,12]
[359504286,1746072634946,-400.0,0.00038356,12]
[359504287,1746072634955,-400.0,0.00038356,12]
[359504288,1746072634964,-290.06,0.00038356,12]
[359504289,1746072634974,-400.0,0.00038356,12]
[359504290,1746072634983,-400.0,0.00038356,12]
[359504291,1746072634993,-400.0,0.00038356,12]
[359504292,1746072635002,-400.0,0.00038356,12]
[359504293,1746072635011,-210.58851187,0.00038356,12]
[359504294,1746072635020,-400.0,0.00038356,12]
[359504295,1746072635030,-400.0,0.00038356,12]
[359504296,1746072635039,-400.0,0.00038356,12]
[359504297,1746072635049,-400.0,0.00038356,12]
[359504298,1746072635059,-400.0,0.00038356,12]
[359504299,1746072635068,-352.98,0.00038356,12]
[359504300,1746072635077,-400.0,0.00038356,12]
[359504301,1746072635086,-400.0,0.00038356,12]
[359504302,1746072635095,-400.0,0.00038356,12]
[359504303,1746072635104,-400.0,0.00038356,12]
[359504304,1746072635113,-500.0,0.00038356,12]
[359504305,1746072635123,-400.0,0.00038356,12]
[359504306,1746072635132,-400.0,0.00038356,12]
[359504307,1746072635142,-400.0,0.00038356,12]
[359504308,1746072635151,-400.0,0.00038356,12]
[359504309,1746072635160,-400.0,0.00038356,12]
[359504310,1746072635169,-400.0,0.00038356,12]
[359504311,1746072635179,-400.0,0.00038356,12]
[359504312,1746072635188,-540.5,0.00038356,12]
[359504313,1746072635197,-400.0,0.00038356,12]
[359504314,1746072635207,-400.0,0.00038356,12]
[359504315,1746072635216,-484.31138853,0.00038356,12]
[359504316,1746072635225,-400.0,0.00038356,12]
[359504317,1746072635234,-403.93040287,0.00038356,12]
[359504318,1746072635245,-400.0,0.00038356,12]
[359504319,1746072635254,-214.71727901,0.00038356,12]
[359504320,1746072635263,-400.0,0.00038356,12]
[359504321,1746072635273,-400.0,0.00038356,12]
[359504322,1746072635282,-400.0,0.00038356,12]
[359504323,1746072635292,-400.0,0.00038356,12]
[359504324,1746072635301,-400.0,0.00038356,12]
[359504325,1746072635311,-400.0,0.00038356,12]
[359504326,1746072635320,-400.0,0.00038356,12]
[359504327,1746072635329,-400.0,0.00038356,12]
[359504328,1746072635339,-400.0,0.00038356,12]
[359504329,1746072635348,-400.0,0.00038356,12]
[359504330,1746072635358,-400.0,0.00038356,12]
[359504331,1746072635367,-400.0,0.00038356,12]
[359504332,1746072635377,-458.0288681,0.00038361,120]
[359504333,1746072635387,-24990.4180384,0.00038363,3]
[359504334,1746072635396,-400.0,0.00038372,12]
[359504335,1746072635405,-400.0,0.00038372,12]
[359504336,1746072635414,-400.0,0.00038372,12]
[359504337,1746072635423,-441.62024983,0.00038373,5]
[359504338,1746072635432,-500.0,0.00038373,5]
[359504339,1746072635441,-500.0,0.00038373,5]
[359504340,1746072635451,-500.0,0.00038373,5]
[359504341,1746072635460,-254.92767308,0.00038373,5]
[359504342,1746072635470,-438.63491863,0.00038373,5]
[359504343,1746072635479,-503.82568151,0.00038373,5]
[359504344,1746072635605,-500.0,0.00038373,5]
[359504345,1746072635616,-544.82897598,0.00038373,2]
[359504346,1746072635626,-500.0,0.00038373,5]
[359504347,1746072635635,-509.24005664,0.00038373,5]
[359504348,1746072635645,-500.0,0.00038373,5]
[359504349,1746072635654,-501.15121201,0.00038373,5]
[359504350,1746072635664,-500.81377684,0.00038373,5]
[359504351,1746072635676,-500.0,0.00038373,5]
[359504352,1746072635685,-500.0,0.00038373,5]
[359504353,1746072635695,-500.0,0.00038373,2]
[359504354,1746072635704,-500.0,0.00038373,5]
[359504355,1746072635715,-500.0,0.00038373,5]
[359504356,1746072635724,-300.0,0.00038373,5]
[359504357,1746072635734,-500.0,0.00038373,5]
[359504358,1746072635744,-504.78153236,0.00038373,5]
[359504359,1746072635754,-501.91282902,0.00038373,5]
[359504360,1746072635764,-500.0,0.00038373,5]
[359504361,1746072635774,-571.68091678,0.00038373,5]
[359504362,1746072635783,-500.0,0.00038373,5]
[359504363,1746072635792,-500.0,0.00038373,5]
[359504364,1746072635802,-500.84017383,0.00038373,5]
[359504365,1746072635812,-2515.33,0.000384,7]
[359504366,1746072635822,-376.03261668,0.00038475,2]
[359504367,1746072635831,-422.214703,0.000386,30]
[359504368,1746072635842,-500.0,0.0003863,12]
[359504369,1746072635852,-9154.84446479,0.0003888,10]
[359504378,1746072638500,-6082.20101702,0.000356,2]
[359504379,1746072638510,-2025.44,0.00038356,12]
[359504380,1746072638521,-2025.44,0.00038356,12]
[359504381,1746072638530,-2025.44,0.00038356,12]
[359504382,1746072638539,-2025.44,0.00038356,12]
[359504383,1746072638549,-2025.44,0.00038356,12]
[359504384,1746072638560,-2025.44,0.00038356,12]
[359504385,1746072638569,-2025.44,0.00038356,12]
[359504386,1746072638579,-2025.44,0.00038356,12]
[359504387,1746072638588,-2025.44,0.00038356,12]
[359504389,1746072638600,-2025.44,0.00038371,12]
[359504392,1746072638609,-58786.89047576,0.0003888,10]
[359504393,1746072638621,-301637.10894587,0.0003888,10]
[359504433,1746072643516,-412.60625222,0.0003888,10]
[359504461,1746072646394,-262.15957481,0.0003888,10]
[359504462,1746072646407,-9696.2103179,0.0003888,10]
[359504464,1746072646447,-6215.12883799,0.0003888,10]
[359504466,1746072671249,250.0,0.000326,30]
[359504467,1746072671698,250.0,0.000306,30]
[359504468,1746072672154,250.0,0.000286,30]
[359504469,1746072672755,250.0,0.000266,30]
[359504475,1746072743468,256.789535,0.00027397,2]
[359504476,1746072743875,256.789535,0.00033165,2]
[359504478,1746072801315,294.09986175,0.00025,30]
[359504493,1746072971413,250.0,0.000246,30]
[359504494,1746072971843,250.0,0.000226,30]
[359504495,1746072972298,250.0,0.000206,30]
[359504514,1746073273358,250.0,0.000246,30]
[359504515,1746073274053,472.831993,0.000226,30]
[359504517,1746073642115,-151.31843755,0.00024551,2]
[359504518,1746073642136,-27.12772405,0.000266,30]
[359504519,1746073643133,-222.87227595,0.000266,30]
[359504520,1746073643154,-260.47152955,0.000269,2]
[359504521,1746073643174,-313.5174939,0.00027,3]
[359504522,1746073643194,-12.1891642,0.000286,30]
[359504523,1746073644088,-237.8108358,0.000286,30]
[359504524,1746073644110,-248.90789597,0.00029731,2]
[359504525,1746073645078,-136.78601446,0.00029731,2]
[359504526,1746073645098,-250.0,0.000306,30]
[359504527,1746073645119,-250.0,0.000326,30]
[359504528,1746073645139,-160.0,0.00033648,2]
[359504529,1746073645160,-173.95628657,0.00033691,2]
[359504530,1746073652163,-4230.36895194,0.0003,7]
[359504531,1746073652183,-404.48570643,0.00033691,2]
[359504532,1746073652202,-250.0,0.000346,30]
[359504533,1746073652222,-667.74577174,0.00035221,2]
[359504534,1746073652240,-157.5,0.00035221,2]
[359504535,1746073652260,-796.91899269,0.00035221,2]
[359504536,1746073652280,-400.0,0.00035259,2]
[359504537,1746073652300,-1600.0,0.00036002,3]
[359504538,1746073652320,-242.0,0.00036002,3]
[359504539,1746073652339,-182.07995741,0.00036004,2]
[359504540,1746073652359,-1197.74884431,0.00036004,2]
[359504543,1746073694552,-284.63682672,0.0002399,2]
[359504544,1746073699685,-125.64155763,0.0002399,2]
[359504545,1746073716772,823.03431189,0.000175,4]
[359504546,1746073718979,-192.31540411,0.00019177,4]
[359504547,1746073720467,301.99999998,0.0002,120]
[359504548,1746073725109,-134.0469633,0.00019177,4]
[359504549,1746073748097,-2238.0,0.00025,2]
[359504550,1746073748120,-35034.21287541,0.00025,2]
[359504551,1746073760089,-150.0,0.000325,2]
[359504557,1746073821917,427.8109829,0.00034027,2]
[359504586,1746073838679,-400.0,0.00035574,2]
[359504587,1746073838689,-100.0,0.00035574,3]
[359504588,1746073838735,-625.0,0.00035574,3]
[359504589,1746073838744,-182.07995741,0.00035575,2]
[359504590,1746073838756,-6183.71036648,0.00035575,2]
[359504613,1746073840915,-5510.90946931,0.00035575,2]
[359504614,1746073840925,-841.10298755,0.00035575,2]
[359504615,1746073840935,-160.0,0.00035575,2]
[359504616,1746073840945,-4211.28588275,0.00036007,2]
[359504617,1746073840954,-500.0,0.00036173,5]
[359504618,1746073840963,-23.03702189,0.00036173,5]
[359504619,1746073840975,-476.96297811,0.00036173,5]
[359504620,1746073840984,-500.0,0.00036173,2]
[359504621,1746073840993,-500.0,0.0003618,15]
[359504622,1746073841003,-500.0,0.0003618,15]
[359504623,1746073841012,-165.32526332,0.0003618,15]
[359504624,1746073841021,-288.24465205,0.0003618,2]
[359504625,1746073841030,-1884.46710652,0.00036181,2]
[359504626,1746073841042,-352.64554896,0.00036181,2]
[359504627,1746073841053,-652.74774409,0.00036181,2]
[359504639,1746073845304,-20548.76956509,0.00036181,2]
[359504655,1746073846681,-1461.37003534,0.00036181,2]
[359504657,1746073846691,-1344.53094537,0.000365,2]
[359504659,1746073846701,-250.0,0.000366,30]
[359504661,1746073846711,-318.29934872,0.00036817,2]
[359504663,1746073846720,-1344.53094532,0.00037132,2]
[359504665,1746073846729,-150.0,0.000375,2]
[359504666,1746073846739,-1344.53094532,0.00037763,2]
[359504667,1746073846748,-615.25365098,0.00037832,2]
[359504668,1746073846757,-2130.62307575,0.00038,30]
[359504671,1746073846770,-824.27988215,0.00038,30]
[359504673,1746073846779,-8591.67213467,0.00038,2]
[359504675,1746073846789,-500.0,0.00038082,4]
[359504677,1746073846798,-560.0,0.0003812,2]
[359504679,1746073846808,-321.9938649,0.00038317,2]
[359504681,1746073846817,-3952.05411778,0.00038346,3]
[359504683,1746073846828,-17426.72683365,0.00038346,3]
[359504702,1746074806138,-249.64895883,0.00025,2]
[359504703,1746074842101,-717.69750577,0.00025,2]
[359504704,1746074843094,-52.6535354,0.00025,2]
[359504705,1746074843116,-260.47152955,0.00027197,2]
[359504706,1746074843137,-164.94915705,0.00027297,2]
[359504707,1746074843158,-254.528989,0.00027397,2]
[359504708,1746074843179,-154.4892428,0.00027397,3]
[359504709,1746074843199,-179.87408814,0.00032625,9]
[359504710,1746074843219,-9.2097068,0.00033165,2]
[359504711,1746074853211,-245.3192822,0.00033165,2]
[359504712,1746074853234,-421.04232025,0.00033418,2]
[359504713,1746074853255,-184.264684,0.00034027,2]
[359504714,1746074853275,-153.0,0.00034138,2]
[359504715,1746074853296,-500.0,0.00034864,7]
[359504716,1746074853321,-333.95501513,0.00034864,7]
[359504717,1746074853343,-500.0,0.00034864,7]
[359504718,1746074853364,-500.0,0.00034864,7]
[359504719,1746074853385,-500.0,0.00034864,7]
[359504720,1746074853407,-500.0,0.00034864,7]
[359504721,1746074853428,-500.0,0.00034864,7]
[359504722,1746074853450,-410.63608829,0.00034864,7]
[359504723,1746074853471,-500.0,0.00034864,7]
[359504724,1746074853493,-500.0,0.00034864,7]
[359504725,1746074853514,-500.0,0.00034864,7]
[359504726,1746074853536,-500.0,0.00034864,7]
[359504727,1746074853560,-500.0,0.00034864,7]
[359504728,1746074853581,-550.0,0.00034864,7]
[359504729,1746074853602,-500.0,0.00034864,7]
[359504730,1746074853622,-500.0,0.00034864,7]
[359504731,1746074853644,-500.0,0.00034864,7]
[359504732,1746074853665,-500.0,0.00034864,7]
[359504733,1746074853687,-500.0,0.00034864,7]
[359504734,1746074853708,-500.0,0.00034864,7]
[359504735,1746074853730,-500.0,0.00034864,7]
[359504736,1746074853751,-500.0,0.00034864,7]
[359504737,1746074853772,-267.68637301,0.00034864,7]
[359504738,1746074854133,-232.31362699,0.00034864,7]
[359504739,1746074854155,-905.60629036,0.00034865,2]
[359504776,1746075037931,-400.0,0.00034864,2]
[359504778,1746075037941,-1572.0,0.00034864,3]
[359504780,1746075037952,-400.0,0.00034864,3]
[359504782,1746075037962,-238.0,0.00034865,2]
[359504784,1746075037972,-23994.39370964,0.00034865,2]
[359504786,1746075037982,-979.6205695,0.00034865,3]
[359504788,1746075037992,-436.757924,0.00035365,2]
[359504790,1746075038002,-160.0,0.00035482,2]
[359504792,1746075038011,-261.32630699,0.000359,33]
[359504795,1746075038021,-250.0,0.00036115,2]
[359504797,1746075038031,-560.0,0.00037387,2]
[359504799,1746075038040,-347.31166729,0.00037726,2]
[359504801,1746075038050,-157.51,0.00037726,2]
[359504803,1746075038059,-153.0,0.00037726,30]
[359504805,1746075038068,-1000.0,0.00038,7]
[359504807,1746075038077,-5145.64072927,0.00038,60]
[359504809,1746075038087,-840.33184086,0.00038146,2]
[359504811,1746075038097,-2178.11139658,0.00038256,2]
[359504813,1746075038106,-153.0,0.00038274,30]
[359504815,1746075038115,-153.0,0.00038274,30]
[359504817,1746075038125,-153.0,0.00038274,30]
[359504819,1746075038134,-153.0,0.00038274,30]
[359504821,1746075038144,-12589.54207618,0.00038329,2]
[359504823,1746075038154,-841.10298755,0.00038329,2]
[359504825,1746075038163,-160.0,0.00038336,3]
[359504826,1746075038173,-421.4777418,0.00038336,3]
[359504827,1746075038182,-160.0,0.00038336,3]
[359504828,1746075038192,-22227.736315,0.00038336,3]
[359504829,1746075038201,-307.28487413,0.00038345,7]
[359504830,1746075038211,-500.0,0.00038345,15]
[359504831,1746075038220,-415.43867304,0.00038345,15]
[359504832,1746075038229,-423.41361372,0.00038345,7]
[359504833,1746075038238,-676.27630669,0.00038345,2]
[359504834,1746075038248,-111138.681575,0.00038346,3]
[359504835,1746075038257,-160.0,0.00038346,3]
[359504836,1746075038266,-160.0,0.00038346,3]
[359504837,1746075038276,-160.0,0.00038346,3]
[359504838,1746075038286,-160.0,0.00038355,2]
[359504839,1746075038295,-400.0,0.00038356,12]
[359504840,1746075038306,-400.0,0.00038356,12]
[359504841,1746075038315,-400.0,0.00038356,12]
[359504842,1746075038324,-400.0,0.00038356,12]
[359504843,1746075038333,-300.0,0.00038356,12]
[359504844,1746075038342,-400.0,0.00038356,12]
[359504845,1746075038351,-400.0,0.00038356,12]
[359504846,1746075038360,-400.0,0.00038356,12]
[359504847,1746075038368,-400.0,0.00038356,12]
[359504848,1746075038377,-400.0,0.00038356,12]
[359504849,1746075038387,-400.0,0.00038356,12]
[359504850,1746075038397,-400.0,0.00038356,12]
[359504851,1746075038407,-302.43340677,0.00038356,12]
[359504852,1746075038416,-400.0,0.00038356,12]
[359504853,1746075038425,-400.0,0.00038356,12]
[359504854,1746075038436,-400.0,0.00038356,12]
[359504855,1746075038445,-400.0,0.00038356,12]
[359504856,1746075038454,-310.50082755,0.00038356,12]
[359504857,1746075038464,-218.55536529,0.00038356,12]
[359504858,1746075038474,-400.0,0.00038356,12]
[359504859,1746075038483,-268.8358626,0.00038356,12]
[359504860,1746075038492,-400.0,0.00038356,12]
[359504861,1746075038503,-400.0,0.00038356,12]
[359504862,1746075038513,-461.2786718,0.00038356,12]
[359504863,1746075038523,-400.0,0.00038356,12]
[359504864,1746075038534,-400.0,0.00038356,12]
[359504865,1746075038543,-400.0,0.00038356,12]
[359504866,1746075038555,-400.0,0.00038356,12]
[359504867,1746075038566,-400.0,0.00038356,12]
[359504868,1746075038576,-400.0,0.00038356,12]
[359504869,1746075038585,-400.0,0.00038356,12]
[359504870,1746075038595,-400.0,0.00038356,12]
[359504871,1746075038608,-505.18119003,0.00038356,12]
[359504872,1746075038617,-400.0,0.00038356,12]
[359504873,1746075038627,-515.34,0.00038356,12]
[359504874,1746075038636,-515.34,0.00038356,12]
[359504875,1746075038646,-515.34,0.00038356,12]
[359504876,1746075038655,-515.34,0.00038356,12]
[359504877,1746075038665,-515.34,0.00038356,12]
[359504878,1746075038678,-515.34,0.00038356,12]
[359504879,1746075038692,-515.34,0.00038356,12]
[359504880,1746075038705,-515.34,0.00038356,12]
[359504881,1746075038716,-400.0,0.00038356,12]
[359504882,1746075038726,-400.0,0.00038356,12]
[359504883,1746075038737,-400.0,0.00038356,12]
[359504884,1746075038749,-400.0,0.00038356,12]
[359504885,1746075038759,-400.0,0.00038356,12]
[359504886,1746075038770,-400.0,0.00038356,12]
[359504887,1746075038783,-400.0,0.00038356,12]
[359504888,1746075038794,-400.0,0.00038356,12]
[359504889,1746075038803,-400.0,0.00038356,12]
[359504890,1746075038813,-400.0,0.00038356,12]
[359504891,1746075038824,-400.0,0.00038356,12]
[359504892,1746075038836,-280.71,0.00038356,12]
[359504893,1746075038848,-400.0,0.00038356,12]
[359504894,1746075038857,-400.0,0.00038356,12]
[359504895,1746075038867,-400.0,0.00038356,12]
[359504896,1746075038878,-265.3,0.00038356,12]
[359504897,1746075038888,-213.17120129,0.00038356,12]
[359504898,1746075038897,-225.62617904,0.00038356,12]
[359504899,1746075038906,-400.0,0.00038356,12]
[359504900,1746075038916,-400.0,0.00038356,12]
[359504901,1746075038926,-400.0,0.00038356,12]
[359504902,1746075038936,-400.0,0.00038356,12]
[359504903,1746075038945,-400.0,0.00038356,12]
[359504904,1746075038955,-400.0,0.00038356,12]
[359504905,1746075038964,-400.70127137,0.00038356,12]
[359504906,1746075038974,-151.0,0.00038356,14]
[359504907,1746075038985,-159.677114,0.00038356,14]
[359504908,1746075038995,-400.0,0.00038356,12]
[359504909,1746075039004,-400.0,0.00038356,12]
[359504910,1746075039014,-400.0,0.00038356,12]
[359504911,1746075039024,-400.0,0.00038356,12]
[359504912,1746075039033,-507.30035848,0.00038356,12]
[359504913,1746075039043,-400.0,0.00038356,12]
[359504914,1746075039053,-431.22,0.00038356,12]
[359504915,1746075039062,-400.0,0.00038356,12]
[359504916,1746075039072,-504.00419728,0.00038356,12]
[359504917,1746075039081,-400.0,0.00038356,12]
[359504918,1746075039091,-400.0,0.00038356,12]
[359504919,1746075039100,-400.0,0.00038356,12]
[359504920,1746075039110,-225.56235068,0.00038356,12]
[359504921,1746075039120,-400.0,0.00038356,12]
[359504922,1746075039130,-400.0,0.00038356,2]
[359504923,1746075039139,-400.0,0.00038356,12]
[359504924,1746075039149,-400.0,0.00038356,2]
[359504925,1746075039159,-400.0,0.00038356,2]
[359504926,1746075039168,-400.0,0.00038356,2]
[359504927,1746075039177,-400.0,0.00038356,12]
[359504928,1746075039186,-400.0,0.00038356,2]
[359504929,1746075039197,-400.0,0.00038356,2]
[359504930,1746075039206,-400.0,0.00038356,2]
[359504931,1746075039215,-155.29,0.00038356,2]
[359504932,1746075039225,-627.79215299,0.00038356,12]
[359504933,1746075039234,-537.23,0.00038356,12]
[359504934,1746075039243,-400.0,0.00038356,12]
[359504935,1746075039252,-400.0,0.00038356,12]
[359504936,1746075039262,-400.0,0.00038356,12]
[359504937,1746075039272,-400.0,0.00038356,12]
[359504938,1746075039281,-400.0,0.00038356,12]
[359504939,1746075039291,-400.0,0.00038356,12]
[359504940,1746075039301,-400.0,0.00038356,12]
[359504941,1746075039310,-400.0,0.00038356,12]
[359504942,1746075039320,-409.98277887,0.00038356,12]
[359504943,1746075039330,-499.55,0.00038356,12]
[359504944,1746075039339,-400.0,0.00038356,12]
[359504945,1746075039349,-400.0,0.00038356,12]
[359504946,1746075039359,-400.0,0.00038356,12]
[359504947,1746075039369,-400.0,0.00038356,12]
[359504948,1746075039379,-400.0,0.00038356,12]
[359504949,1746075039389,-400.0,0.00038356,12]
[359504950,1746075039399,-222.78954671,0.00038356,12]
[359504951,1746075039409,-400.0,0.00038356,12]
[359504952,1746075039419,-400.0,0.00038356,12]
[359504953,1746075039429,-400.0,0.00038356,12]
[359504954,1746075039438,-412.47703817,0.00038356,12]